{"text_format":"3","workbook":"xlsx","n_sheets":2,"sheets":["Gewichtsabnahme - Nachverfolg.","Berechnungen"],"not_rendered":{"charts":1,"defined_names":7},"read":"whole","date_system":"1900"}

{"sheet":"Gewichtsabnahme - Nachverfolg.","index":0,"n_rows":129,"n_cols":11,"rows_kept":129,"merged":[[0,5,0,9],[1,4,3,9]]}
[null,"ZIELGEWICHT","DIAGRAMMANSICHT",null,null," KATRINS GEWICHTSABNAHME"]
[{"$nulls":4},"NACHVERFOLGUNG"]
[null,{"v":172,"d":"172.0"},"WÖCHENTLICH",{"$nulls":7}," "]
[]
[]
[{"$nulls":10}," "]
{"$rows_empty":18}
[null,"DATUM","GEWICHT"]
[null,"2012-11-30",{"v":176,"d":"176.0"}]
[null,"2012-12-07",{"v":176,"d":"176.0"}]
[null,"2012-12-14",177.6]
[null,"2012-12-21",176.5]
[null,"2012-12-28",176.1]
[null,"2013-01-04",{"v":174,"d":"174.0"}]
[null,"2013-01-11",{"v":173,"d":"173.0"}]
[null,"2013-01-18",{"v":172,"d":"172.0"}]
[null,"2013-01-25",{"v":172,"d":"172.0"}]
[null,"2013-02-01",{"v":173,"d":"173.0"}]
[null,"2013-02-08",{"v":174,"d":"174.0"}]
[null,"2013-02-15",{"v":175,"d":"175.0"}]
[null,"2013-02-22"]
[null,"2013-03-01"]
[null,"2013-03-08"]
[null,"2013-03-15"]
[null,"2013-03-22"]
[null,"2013-03-29"]
[null,"2013-04-05"]
[null,"2013-04-12"]
[null,"2013-04-19"]
[null,"2013-04-26"]
[null,"2013-05-03"]
[null,"2013-05-10"]
[null,"2013-05-17"]
[null,"2013-05-24"]
[null,"2013-05-31"]
[null,"2013-06-07"]
[null,"2013-06-14"]
[null,"2013-06-21"]
[null,"2013-06-28"]
[null,"2013-07-05"]
[null,"2013-07-12"]
[null,"2013-07-19"]
[null,"2013-07-26"]
[null,"2013-08-02"]
[null,"2013-08-09"]
[null,"2013-08-16"]
[null,"2013-08-23"]
[null,"2013-08-30"]
[null,"2013-09-06"]
[null,"2013-09-13"]
[null,"2013-09-20"]
[null,"2013-09-27"]
[null,"2013-10-04"]
[null,"2013-10-11"]
[null,"2013-10-18"]
[null,"2013-10-25"]
[null,"2013-11-01"]
[null,"2013-11-08"]
[null,"2013-11-15"]
[null,"2013-11-22"]
[null,"2013-11-29"]
[null,"2013-12-06"]
[null,"2013-12-13"]
[null,"2013-12-20"]
[null,"2013-12-27"]
[null,"2014-01-03"]
[null,"2014-01-10"]
[null,"2014-01-17"]
[null,"2014-01-24"]
[null,"2014-01-31"]
[null,"2014-02-07"]
[null,"2014-02-14"]
[null,"2014-02-21"]
[null,"2014-02-28"]
[null,"2014-03-07"]
[null,"2014-03-14"]
[null,"2014-03-21"]
[null,"2014-03-28"]
[null,"2014-04-04"]
[null,"2014-04-11"]
[null,"2014-04-18"]
[null,"2014-04-25"]
[null,"2014-05-02"]
[null,"2014-05-09"]
[null,"2014-05-16"]
[null,"2014-05-23"]
[null,"2014-05-30"]
[null,"2014-06-06"]
[null,"2014-06-13"]
[null,"2014-06-20"]
[null,"2014-06-27"]
[null,"2014-07-04"]
[null,"2014-07-11"]
[null,"2014-07-18"]
[null,"2014-07-25"]
[null,"2014-08-01"]
[null,"2014-08-08"]
[null,"2014-08-15"]
[null,"2014-08-22"]
[null,"2014-08-29"]
[null,"2014-09-05"]
[null,"2014-09-12"]
[null,"2014-09-19"]
[null,"2014-09-26"]
[null,"2014-10-03"]
[null,"2014-10-10"]
[null,"2014-10-17"]
[null,"2014-10-24"]
[null,"2014-10-31"]
[null,"2014-11-07"]
[null,"2014-11-14"]
[null,"2014-11-21"]

{"sheet":"Berechnungen","index":1,"n_rows":108,"n_cols":17,"rows_kept":108,"hidden":true}
["*** Dieses Arbeitsblatt sollte ausgeblendet bleiben. ***"]
[]
[{"$f":"COUNTIF(A5:A108,FALSE)","v":13},"Zeiträume","Werte",{"$nulls":3},{"$f":"COUNTIF(H5:H28,\">\"&0)","v":4},"Zeiträume",null,"Werte"]
[null,"Woche",null,null,true,null,null,"Monat","EDM"]
[{"$f":"IF(('Gewichtsabnahme - Nachverfolg.'!C26=0)*('Gewichtsabnahme - Nachverfolg.'!C25=0),TRUE)","v":false},{"$f":"IF(A5,0,IF('Gewichtsabnahme - Nachverfolg.'!B26=0,'Gewichtsabnahme - Nachverfolg.'!B25+5,'Gewichtsabnahme - Nachverfolg.'!B26))","v":"2012-11-30"},{"$f":"'Gewichtsabnahme - Nachverfolg.'!C26","v":176},{"$f":"MIN(Diagrammzeiträume)","v":"2012-11-30"},{"$f":"IF($E$4,Zielgewicht,NA())","v":172},null,null,{"$f":"DATE(YEAR(B5),MONTH(B5),1)","v":"2012-11-01"},{"$f":"EOMONTH(H5,0)","v":"2012-11-30"},{"$f":"IFERROR(AVERAGEIFS(Gewichtstabelle[GEWICHT],Gewichtstabelle[DATUM],\">=\"&H5,Gewichtstabelle[DATUM],\"<=\"&I5),NA())","v":176}]
[{"$f":"IF(('Gewichtsabnahme - Nachverfolg.'!C27=0)*('Gewichtsabnahme - Nachverfolg.'!C26=0),TRUE)","v":false},{"$f":"IF(A6,0,IF('Gewichtsabnahme - Nachverfolg.'!B27=0,'Gewichtsabnahme - Nachverfolg.'!B26+5,'Gewichtsabnahme - Nachverfolg.'!B27))","v":"2012-12-07"},{"$f":"'Gewichtsabnahme - Nachverfolg.'!C27","v":176},{"$f":"MAX(Diagrammzeiträume)","v":"2013-02-22"},172,null,null,{"$f":"IF(I5+1>MAX($B:$B),NA(),I5+1)","v":"2012-12-01"},"2012-12-31",{"$f":"IFERROR(AVERAGEIFS(Gewichtstabelle[GEWICHT],Gewichtstabelle[DATUM],\">=\"&H6,Gewichtstabelle[DATUM],\"<=\"&I6),NA())","v":176.55}]
[{"$f":"IF(('Gewichtsabnahme - Nachverfolg.'!C28=0)*('Gewichtsabnahme - Nachverfolg.'!C27=0),TRUE)","v":false},{"$f":"IF(A7,0,IF('Gewichtsabnahme - Nachverfolg.'!B28=0,'Gewichtsabnahme - Nachverfolg.'!B27+5,'Gewichtsabnahme - Nachverfolg.'!B28))","v":"2012-12-14"},{"$f":"'Gewichtsabnahme - Nachverfolg.'!C28","v":177.6},{"$nulls":4},{"$f":"IF(I6+1>MAX($B:$B),NA(),I6+1)","v":"2013-01-01"},"2013-01-31",{"$f":"IFERROR(AVERAGEIFS(Gewichtstabelle[GEWICHT],Gewichtstabelle[DATUM],\">=\"&H7,Gewichtstabelle[DATUM],\"<=\"&I7),NA())","v":172.75}]
[{"$f":"IF(('Gewichtsabnahme - Nachverfolg.'!C29=0)*('Gewichtsabnahme - Nachverfolg.'!C28=0),TRUE)","v":false},{"$f":"IF(A8,0,IF('Gewichtsabnahme - Nachverfolg.'!B29=0,'Gewichtsabnahme - Nachverfolg.'!B28+5,'Gewichtsabnahme - Nachverfolg.'!B29))","v":"2012-12-21"},{"$f":"'Gewichtsabnahme - Nachverfolg.'!C29","v":176.5},{"$nulls":4},"2013-02-01","2013-02-28",{"$f":"IFERROR(AVERAGEIFS(Gewichtstabelle[GEWICHT],Gewichtstabelle[DATUM],\">=\"&H8,Gewichtstabelle[DATUM],\"<=\"&I8),NA())","v":174}]
[{"$f":"IF(('Gewichtsabnahme - Nachverfolg.'!C30=0)*('Gewichtsabnahme - Nachverfolg.'!C29=0),TRUE)","v":false},{"$f":"IF(A9,0,IF('Gewichtsabnahme - Nachverfolg.'!B30=0,'Gewichtsabnahme - Nachverfolg.'!B29+5,'Gewichtsabnahme - Nachverfolg.'!B30))","v":"2012-12-28"},{"$f":"'Gewichtsabnahme - Nachverfolg.'!C30","v":176.1},{"$nulls":4},{"$error":"#N/A"},{"$error":"#N/A"},{"$f":"IFERROR(AVERAGEIFS(Gewichtstabelle[GEWICHT],Gewichtstabelle[DATUM],\">=\"&H9,Gewichtstabelle[DATUM],\"<=\"&I9),NA())","v":{"$error":"#N/A"}}]
[{"$f":"IF(('Gewichtsabnahme - Nachverfolg.'!C31=0)*('Gewichtsabnahme - Nachverfolg.'!C30=0),TRUE)","v":false},{"$f":"IF(A10,0,IF('Gewichtsabnahme - Nachverfolg.'!B31=0,'Gewichtsabnahme - Nachverfolg.'!B30+5,'Gewichtsabnahme - Nachverfolg.'!B31))","v":"2013-01-04"},{"$f":"'Gewichtsabnahme - Nachverfolg.'!C31","v":174},{"$nulls":4},{"$error":"#N/A"},{"$error":"#N/A"},{"$f":"IFERROR(AVERAGEIFS(Gewichtstabelle[GEWICHT],Gewichtstabelle[DATUM],\">=\"&H10,Gewichtstabelle[DATUM],\"<=\"&I10),NA())","v":{"$error":"#N/A"}}]
[{"$f":"IF(('Gewichtsabnahme - Nachverfolg.'!C32=0)*('Gewichtsabnahme - Nachverfolg.'!C31=0),TRUE)","v":false},{"$f":"IF(A11,0,IF('Gewichtsabnahme - Nachverfolg.'!B32=0,'Gewichtsabnahme - Nachverfolg.'!B31+5,'Gewichtsabnahme - Nachverfolg.'!B32))","v":"2013-01-11"},{"$f":"'Gewichtsabnahme - Nachverfolg.'!C32","v":173},{"$nulls":4},{"$error":"#N/A"},{"$error":"#N/A"},{"$f":"IFERROR(AVERAGEIFS(Gewichtstabelle[GEWICHT],Gewichtstabelle[DATUM],\">=\"&H11,Gewichtstabelle[DATUM],\"<=\"&I11),NA())","v":{"$error":"#N/A"}},{"$nulls":6},{"$f":"MAX($B:$B)","v":"2013-02-22"}]
[{"$f":"IF(('Gewichtsabnahme - Nachverfolg.'!C33=0)*('Gewichtsabnahme - Nachverfolg.'!C32=0),TRUE)","v":false},{"$f":"IF(A12,0,IF('Gewichtsabnahme - Nachverfolg.'!B33=0,'Gewichtsabnahme - Nachverfolg.'!B32+5,'Gewichtsabnahme - Nachverfolg.'!B33))","v":"2013-01-18"},{"$f":"'Gewichtsabnahme - Nachverfolg.'!C33","v":172},{"$nulls":4},{"$error":"#N/A"},{"$error":"#N/A"},{"$f":"IFERROR(AVERAGEIFS(Gewichtstabelle[GEWICHT],Gewichtstabelle[DATUM],\">=\"&H12,Gewichtstabelle[DATUM],\"<=\"&I12),NA())","v":{"$error":"#N/A"}}]
[{"$f":"IF(('Gewichtsabnahme - Nachverfolg.'!C34=0)*('Gewichtsabnahme - Nachverfolg.'!C33=0),TRUE)","v":false},{"$f":"IF(A13,0,IF('Gewichtsabnahme - Nachverfolg.'!B34=0,'Gewichtsabnahme - Nachverfolg.'!B33+5,'Gewichtsabnahme - Nachverfolg.'!B34))","v":"2013-01-25"},{"$f":"'Gewichtsabnahme - Nachverfolg.'!C34","v":172},{"$nulls":4},{"$error":"#N/A"},{"$error":"#N/A"},{"$f":"IFERROR(AVERAGEIFS(Gewichtstabelle[GEWICHT],Gewichtstabelle[DATUM],\">=\"&H13,Gewichtstabelle[DATUM],\"<=\"&I13),NA())","v":{"$error":"#N/A"}}]
[{"$f":"IF(('Gewichtsabnahme - Nachverfolg.'!C35=0)*('Gewichtsabnahme - Nachverfolg.'!C34=0),TRUE)","v":false},{"$f":"IF(A14,0,IF('Gewichtsabnahme - Nachverfolg.'!B35=0,'Gewichtsabnahme - Nachverfolg.'!B34+5,'Gewichtsabnahme - Nachverfolg.'!B35))","v":"2013-02-01"},{"$f":"'Gewichtsabnahme - Nachverfolg.'!C35","v":173},{"$nulls":4},{"$error":"#N/A"},{"$error":"#N/A"},{"$f":"IFERROR(AVERAGEIFS(Gewichtstabelle[GEWICHT],Gewichtstabelle[DATUM],\">=\"&H14,Gewichtstabelle[DATUM],\"<=\"&I14),NA())","v":{"$error":"#N/A"}}]
[{"$f":"IF(('Gewichtsabnahme - Nachverfolg.'!C36=0)*('Gewichtsabnahme - Nachverfolg.'!C35=0),TRUE)","v":false},{"$f":"IF(A15,0,IF('Gewichtsabnahme - Nachverfolg.'!B36=0,'Gewichtsabnahme - Nachverfolg.'!B35+5,'Gewichtsabnahme - Nachverfolg.'!B36))","v":"2013-02-08"},{"$f":"'Gewichtsabnahme - Nachverfolg.'!C36","v":174},{"$nulls":4},{"$error":"#N/A"},{"$error":"#N/A"},{"$f":"IFERROR(AVERAGEIFS(Gewichtstabelle[GEWICHT],Gewichtstabelle[DATUM],\">=\"&H15,Gewichtstabelle[DATUM],\"<=\"&I15),NA())","v":{"$error":"#N/A"}}]
[{"$f":"IF(('Gewichtsabnahme - Nachverfolg.'!C37=0)*('Gewichtsabnahme - Nachverfolg.'!C36=0),TRUE)","v":false},{"$f":"IF(A16,0,IF('Gewichtsabnahme - Nachverfolg.'!B37=0,'Gewichtsabnahme - Nachverfolg.'!B36+5,'Gewichtsabnahme - Nachverfolg.'!B37))","v":"2013-02-15"},{"$f":"'Gewichtsabnahme - Nachverfolg.'!C37","v":175},{"$nulls":4},{"$error":"#N/A"},{"$error":"#N/A"},{"$f":"IFERROR(AVERAGEIFS(Gewichtstabelle[GEWICHT],Gewichtstabelle[DATUM],\">=\"&H16,Gewichtstabelle[DATUM],\"<=\"&I16),NA())","v":{"$error":"#N/A"}}]
[{"$f":"IF(('Gewichtsabnahme - Nachverfolg.'!C38=0)*('Gewichtsabnahme - Nachverfolg.'!C37=0),TRUE)","v":false},{"$f":"IF(A17,0,IF('Gewichtsabnahme - Nachverfolg.'!B38=0,'Gewichtsabnahme - Nachverfolg.'!B37+5,'Gewichtsabnahme - Nachverfolg.'!B38))","v":"2013-02-22"},{"$f":"'Gewichtsabnahme - Nachverfolg.'!C38","v":0},{"$nulls":4},{"$error":"#N/A"},{"$error":"#N/A"},{"$f":"IFERROR(AVERAGEIFS(Gewichtstabelle[GEWICHT],Gewichtstabelle[DATUM],\">=\"&H17,Gewichtstabelle[DATUM],\"<=\"&I17),NA())","v":{"$error":"#N/A"}}]
[{"$f":"IF(('Gewichtsabnahme - Nachverfolg.'!C39=0)*('Gewichtsabnahme - Nachverfolg.'!C38=0),TRUE)","v":true},{"$f":"IF(A18,0,IF('Gewichtsabnahme - Nachverfolg.'!B39=0,'Gewichtsabnahme - Nachverfolg.'!B38+5,'Gewichtsabnahme - Nachverfolg.'!B39))","v":"00:00:00"},{"$f":"'Gewichtsabnahme - Nachverfolg.'!C39","v":0},{"$nulls":4},{"$error":"#N/A"},{"$error":"#N/A"},{"$f":"IFERROR(AVERAGEIFS(Gewichtstabelle[GEWICHT],Gewichtstabelle[DATUM],\">=\"&H18,Gewichtstabelle[DATUM],\"<=\"&I18),NA())","v":{"$error":"#N/A"}}]
[{"$f":"IF(('Gewichtsabnahme - Nachverfolg.'!C40=0)*('Gewichtsabnahme - Nachverfolg.'!C39=0),TRUE)","v":true},{"$f":"IF(A19,0,IF('Gewichtsabnahme - Nachverfolg.'!B40=0,'Gewichtsabnahme - Nachverfolg.'!B39+5,'Gewichtsabnahme - Nachverfolg.'!B40))","v":"00:00:00"},{"$f":"'Gewichtsabnahme - Nachverfolg.'!C40","v":0},{"$nulls":4},{"$error":"#N/A"},{"$error":"#N/A"},{"$f":"IFERROR(AVERAGEIFS(Gewichtstabelle[GEWICHT],Gewichtstabelle[DATUM],\">=\"&H19,Gewichtstabelle[DATUM],\"<=\"&I19),NA())","v":{"$error":"#N/A"}}]
[{"$f":"IF(('Gewichtsabnahme - Nachverfolg.'!C41=0)*('Gewichtsabnahme - Nachverfolg.'!C40=0),TRUE)","v":true},{"$f":"IF(A20,0,IF('Gewichtsabnahme - Nachverfolg.'!B41=0,'Gewichtsabnahme - Nachverfolg.'!B40+5,'Gewichtsabnahme - Nachverfolg.'!B41))","v":"00:00:00"},{"$f":"'Gewichtsabnahme - Nachverfolg.'!C41","v":0},{"$nulls":4},{"$error":"#N/A"},{"$error":"#N/A"},{"$f":"IFERROR(AVERAGEIFS(Gewichtstabelle[GEWICHT],Gewichtstabelle[DATUM],\">=\"&H20,Gewichtstabelle[DATUM],\"<=\"&I20),NA())","v":{"$error":"#N/A"}}]
[{"$f":"IF(('Gewichtsabnahme - Nachverfolg.'!C42=0)*('Gewichtsabnahme - Nachverfolg.'!C41=0),TRUE)","v":true},{"$f":"IF(A21,0,IF('Gewichtsabnahme - Nachverfolg.'!B42=0,'Gewichtsabnahme - Nachverfolg.'!B41+5,'Gewichtsabnahme - Nachverfolg.'!B42))","v":"00:00:00"},{"$f":"'Gewichtsabnahme - Nachverfolg.'!C42","v":0},{"$nulls":4},{"$error":"#N/A"},{"$error":"#N/A"},{"$f":"IFERROR(AVERAGEIFS(Gewichtstabelle[GEWICHT],Gewichtstabelle[DATUM],\">=\"&H21,Gewichtstabelle[DATUM],\"<=\"&I21),NA())","v":{"$error":"#N/A"}}]
[{"$f":"IF(('Gewichtsabnahme - Nachverfolg.'!C43=0)*('Gewichtsabnahme - Nachverfolg.'!C42=0),TRUE)","v":true},{"$f":"IF(A22,0,IF('Gewichtsabnahme - Nachverfolg.'!B43=0,'Gewichtsabnahme - Nachverfolg.'!B42+5,'Gewichtsabnahme - Nachverfolg.'!B43))","v":"00:00:00"},{"$f":"'Gewichtsabnahme - Nachverfolg.'!C43","v":0},{"$nulls":4},{"$error":"#N/A"},{"$error":"#N/A"},{"$f":"IFERROR(AVERAGEIFS(Gewichtstabelle[GEWICHT],Gewichtstabelle[DATUM],\">=\"&H22,Gewichtstabelle[DATUM],\"<=\"&I22),NA())","v":{"$error":"#N/A"}}]
[{"$f":"IF(('Gewichtsabnahme - Nachverfolg.'!C44=0)*('Gewichtsabnahme - Nachverfolg.'!C43=0),TRUE)","v":true},{"$f":"IF(A23,0,IF('Gewichtsabnahme - Nachverfolg.'!B44=0,'Gewichtsabnahme - Nachverfolg.'!B43+5,'Gewichtsabnahme - Nachverfolg.'!B44))","v":"00:00:00"},{"$f":"'Gewichtsabnahme - Nachverfolg.'!C44","v":0},{"$nulls":4},{"$error":"#N/A"},{"$error":"#N/A"},{"$f":"IFERROR(AVERAGEIFS(Gewichtstabelle[GEWICHT],Gewichtstabelle[DATUM],\">=\"&H23,Gewichtstabelle[DATUM],\"<=\"&I23),NA())","v":{"$error":"#N/A"}}]
[{"$f":"IF(('Gewichtsabnahme - Nachverfolg.'!C45=0)*('Gewichtsabnahme - Nachverfolg.'!C44=0),TRUE)","v":true},{"$f":"IF(A24,0,IF('Gewichtsabnahme - Nachverfolg.'!B45=0,'Gewichtsabnahme - Nachverfolg.'!B44+5,'Gewichtsabnahme - Nachverfolg.'!B45))","v":"00:00:00"},{"$f":"'Gewichtsabnahme - Nachverfolg.'!C45","v":0},{"$nulls":4},{"$error":"#N/A"},{"$error":"#N/A"},{"$f":"IFERROR(AVERAGEIFS(Gewichtstabelle[GEWICHT],Gewichtstabelle[DATUM],\">=\"&H24,Gewichtstabelle[DATUM],\"<=\"&I24),NA())","v":{"$error":"#N/A"}}]
[{"$f":"IF(('Gewichtsabnahme - Nachverfolg.'!C46=0)*('Gewichtsabnahme - Nachverfolg.'!C45=0),TRUE)","v":true},{"$f":"IF(A25,0,IF('Gewichtsabnahme - Nachverfolg.'!B46=0,'Gewichtsabnahme - Nachverfolg.'!B45+5,'Gewichtsabnahme - Nachverfolg.'!B46))","v":"00:00:00"},{"$f":"'Gewichtsabnahme - Nachverfolg.'!C46","v":0},{"$nulls":4},{"$error":"#N/A"},{"$error":"#N/A"},{"$f":"IFERROR(AVERAGEIFS(Gewichtstabelle[GEWICHT],Gewichtstabelle[DATUM],\">=\"&H25,Gewichtstabelle[DATUM],\"<=\"&I25),NA())","v":{"$error":"#N/A"}}]
[{"$f":"IF(('Gewichtsabnahme - Nachverfolg.'!C47=0)*('Gewichtsabnahme - Nachverfolg.'!C46=0),TRUE)","v":true},{"$f":"IF(A26,0,IF('Gewichtsabnahme - Nachverfolg.'!B47=0,'Gewichtsabnahme - Nachverfolg.'!B46+5,'Gewichtsabnahme - Nachverfolg.'!B47))","v":"00:00:00"},{"$f":"'Gewichtsabnahme - Nachverfolg.'!C47","v":0},{"$nulls":4},{"$error":"#N/A"},{"$error":"#N/A"},{"$f":"IFERROR(AVERAGEIFS(Gewichtstabelle[GEWICHT],Gewichtstabelle[DATUM],\">=\"&H26,Gewichtstabelle[DATUM],\"<=\"&I26),NA())","v":{"$error":"#N/A"}}]
[{"$f":"IF(('Gewichtsabnahme - Nachverfolg.'!C48=0)*('Gewichtsabnahme - Nachverfolg.'!C47=0),TRUE)","v":true},{"$f":"IF(A27,0,IF('Gewichtsabnahme - Nachverfolg.'!B48=0,'Gewichtsabnahme - Nachverfolg.'!B47+5,'Gewichtsabnahme - Nachverfolg.'!B48))","v":"00:00:00"},{"$f":"'Gewichtsabnahme - Nachverfolg.'!C48","v":0},{"$nulls":4},{"$error":"#N/A"},{"$error":"#N/A"},{"$f":"IFERROR(AVERAGEIFS(Gewichtstabelle[GEWICHT],Gewichtstabelle[DATUM],\">=\"&H27,Gewichtstabelle[DATUM],\"<=\"&I27),NA())","v":{"$error":"#N/A"}}]
[{"$f":"IF(('Gewichtsabnahme - Nachverfolg.'!C49=0)*('Gewichtsabnahme - Nachverfolg.'!C48=0),TRUE)","v":true},{"$f":"IF(A28,0,IF('Gewichtsabnahme - Nachverfolg.'!B49=0,'Gewichtsabnahme - Nachverfolg.'!B48+5,'Gewichtsabnahme - Nachverfolg.'!B49))","v":"00:00:00"},{"$f":"'Gewichtsabnahme - Nachverfolg.'!C49","v":0},{"$nulls":4},{"$error":"#N/A"},{"$error":"#N/A"},{"$f":"IFERROR(AVERAGEIFS(Gewichtstabelle[GEWICHT],Gewichtstabelle[DATUM],\">=\"&H28,Gewichtstabelle[DATUM],\"<=\"&I28),NA())","v":{"$error":"#N/A"}}]
[{"$f":"IF(('Gewichtsabnahme - Nachverfolg.'!C50=0)*('Gewichtsabnahme - Nachverfolg.'!C49=0),TRUE)","v":true},{"$f":"IF(A29,0,IF('Gewichtsabnahme - Nachverfolg.'!B50=0,'Gewichtsabnahme - Nachverfolg.'!B49+5,'Gewichtsabnahme - Nachverfolg.'!B50))","v":"00:00:00"},{"$f":"'Gewichtsabnahme - Nachverfolg.'!C50","v":0}]
[{"$f":"IF(('Gewichtsabnahme - Nachverfolg.'!C51=0)*('Gewichtsabnahme - Nachverfolg.'!C50=0),TRUE)","v":true},{"$f":"IF(A30,0,IF('Gewichtsabnahme - Nachverfolg.'!B51=0,'Gewichtsabnahme - Nachverfolg.'!B50+5,'Gewichtsabnahme - Nachverfolg.'!B51))","v":"00:00:00"},{"$f":"'Gewichtsabnahme - Nachverfolg.'!C51","v":0}]
[{"$f":"IF(('Gewichtsabnahme - Nachverfolg.'!C52=0)*('Gewichtsabnahme - Nachverfolg.'!C51=0),TRUE)","v":true},{"$f":"IF(A31,0,IF('Gewichtsabnahme - Nachverfolg.'!B52=0,'Gewichtsabnahme - Nachverfolg.'!B51+5,'Gewichtsabnahme - Nachverfolg.'!B52))","v":"00:00:00"},{"$f":"'Gewichtsabnahme - Nachverfolg.'!C52","v":0}]
[{"$f":"IF(('Gewichtsabnahme - Nachverfolg.'!C53=0)*('Gewichtsabnahme - Nachverfolg.'!C52=0),TRUE)","v":true},{"$f":"IF(A32,0,IF('Gewichtsabnahme - Nachverfolg.'!B53=0,'Gewichtsabnahme - Nachverfolg.'!B52+5,'Gewichtsabnahme - Nachverfolg.'!B53))","v":"00:00:00"},{"$f":"'Gewichtsabnahme - Nachverfolg.'!C53","v":0}]
[{"$f":"IF(('Gewichtsabnahme - Nachverfolg.'!C54=0)*('Gewichtsabnahme - Nachverfolg.'!C53=0),TRUE)","v":true},{"$f":"IF(A33,0,IF('Gewichtsabnahme - Nachverfolg.'!B54=0,'Gewichtsabnahme - Nachverfolg.'!B53+5,'Gewichtsabnahme - Nachverfolg.'!B54))","v":"00:00:00"},{"$f":"'Gewichtsabnahme - Nachverfolg.'!C54","v":0}]
[{"$f":"IF(('Gewichtsabnahme - Nachverfolg.'!C55=0)*('Gewichtsabnahme - Nachverfolg.'!C54=0),TRUE)","v":true},{"$f":"IF(A34,0,IF('Gewichtsabnahme - Nachverfolg.'!B55=0,'Gewichtsabnahme - Nachverfolg.'!B54+5,'Gewichtsabnahme - Nachverfolg.'!B55))","v":"00:00:00"},{"$f":"'Gewichtsabnahme - Nachverfolg.'!C55","v":0}]
[{"$f":"IF(('Gewichtsabnahme - Nachverfolg.'!C56=0)*('Gewichtsabnahme - Nachverfolg.'!C55=0),TRUE)","v":true},{"$f":"IF(A35,0,IF('Gewichtsabnahme - Nachverfolg.'!B56=0,'Gewichtsabnahme - Nachverfolg.'!B55+5,'Gewichtsabnahme - Nachverfolg.'!B56))","v":"00:00:00"},{"$f":"'Gewichtsabnahme - Nachverfolg.'!C56","v":0}]
[{"$f":"IF(('Gewichtsabnahme - Nachverfolg.'!C57=0)*('Gewichtsabnahme - Nachverfolg.'!C56=0),TRUE)","v":true},{"$f":"IF(A36,0,IF('Gewichtsabnahme - Nachverfolg.'!B57=0,'Gewichtsabnahme - Nachverfolg.'!B56+5,'Gewichtsabnahme - Nachverfolg.'!B57))","v":"00:00:00"},{"$f":"'Gewichtsabnahme - Nachverfolg.'!C57","v":0}]
[{"$f":"IF(('Gewichtsabnahme - Nachverfolg.'!C58=0)*('Gewichtsabnahme - Nachverfolg.'!C57=0),TRUE)","v":true},{"$f":"IF(A37,0,IF('Gewichtsabnahme - Nachverfolg.'!B58=0,'Gewichtsabnahme - Nachverfolg.'!B57+5,'Gewichtsabnahme - Nachverfolg.'!B58))","v":"00:00:00"},{"$f":"'Gewichtsabnahme - Nachverfolg.'!C58","v":0}]
[{"$f":"IF(('Gewichtsabnahme - Nachverfolg.'!C59=0)*('Gewichtsabnahme - Nachverfolg.'!C58=0),TRUE)","v":true},{"$f":"IF(A38,0,IF('Gewichtsabnahme - Nachverfolg.'!B59=0,'Gewichtsabnahme - Nachverfolg.'!B58+5,'Gewichtsabnahme - Nachverfolg.'!B59))","v":"00:00:00"},{"$f":"'Gewichtsabnahme - Nachverfolg.'!C59","v":0}]
[{"$f":"IF(('Gewichtsabnahme - Nachverfolg.'!C60=0)*('Gewichtsabnahme - Nachverfolg.'!C59=0),TRUE)","v":true},{"$f":"IF(A39,0,IF('Gewichtsabnahme - Nachverfolg.'!B60=0,'Gewichtsabnahme - Nachverfolg.'!B59+5,'Gewichtsabnahme - Nachverfolg.'!B60))","v":"00:00:00"},{"$f":"'Gewichtsabnahme - Nachverfolg.'!C60","v":0}]
[{"$f":"IF(('Gewichtsabnahme - Nachverfolg.'!C61=0)*('Gewichtsabnahme - Nachverfolg.'!C60=0),TRUE)","v":true},{"$f":"IF(A40,0,IF('Gewichtsabnahme - Nachverfolg.'!B61=0,'Gewichtsabnahme - Nachverfolg.'!B60+5,'Gewichtsabnahme - Nachverfolg.'!B61))","v":"00:00:00"},{"$f":"'Gewichtsabnahme - Nachverfolg.'!C61","v":0}]
[{"$f":"IF(('Gewichtsabnahme - Nachverfolg.'!C62=0)*('Gewichtsabnahme - Nachverfolg.'!C61=0),TRUE)","v":true},{"$f":"IF(A41,0,IF('Gewichtsabnahme - Nachverfolg.'!B62=0,'Gewichtsabnahme - Nachverfolg.'!B61+5,'Gewichtsabnahme - Nachverfolg.'!B62))","v":"00:00:00"},{"$f":"'Gewichtsabnahme - Nachverfolg.'!C62","v":0}]
[{"$f":"IF(('Gewichtsabnahme - Nachverfolg.'!C63=0)*('Gewichtsabnahme - Nachverfolg.'!C62=0),TRUE)","v":true},{"$f":"IF(A42,0,IF('Gewichtsabnahme - Nachverfolg.'!B63=0,'Gewichtsabnahme - Nachverfolg.'!B62+5,'Gewichtsabnahme - Nachverfolg.'!B63))","v":"00:00:00"},{"$f":"'Gewichtsabnahme - Nachverfolg.'!C63","v":0}]
[{"$f":"IF(('Gewichtsabnahme - Nachverfolg.'!C64=0)*('Gewichtsabnahme - Nachverfolg.'!C63=0),TRUE)","v":true},{"$f":"IF(A43,0,IF('Gewichtsabnahme - Nachverfolg.'!B64=0,'Gewichtsabnahme - Nachverfolg.'!B63+5,'Gewichtsabnahme - Nachverfolg.'!B64))","v":"00:00:00"},{"$f":"'Gewichtsabnahme - Nachverfolg.'!C64","v":0}]
[{"$f":"IF(('Gewichtsabnahme - Nachverfolg.'!C65=0)*('Gewichtsabnahme - Nachverfolg.'!C64=0),TRUE)","v":true},{"$f":"IF(A44,0,IF('Gewichtsabnahme - Nachverfolg.'!B65=0,'Gewichtsabnahme - Nachverfolg.'!B64+5,'Gewichtsabnahme - Nachverfolg.'!B65))","v":"00:00:00"},{"$f":"'Gewichtsabnahme - Nachverfolg.'!C65","v":0}]
[{"$f":"IF(('Gewichtsabnahme - Nachverfolg.'!C66=0)*('Gewichtsabnahme - Nachverfolg.'!C65=0),TRUE)","v":true},{"$f":"IF(A45,0,IF('Gewichtsabnahme - Nachverfolg.'!B66=0,'Gewichtsabnahme - Nachverfolg.'!B65+5,'Gewichtsabnahme - Nachverfolg.'!B66))","v":"00:00:00"},{"$f":"'Gewichtsabnahme - Nachverfolg.'!C66","v":0}]
[{"$f":"IF(('Gewichtsabnahme - Nachverfolg.'!C67=0)*('Gewichtsabnahme - Nachverfolg.'!C66=0),TRUE)","v":true},{"$f":"IF(A46,0,IF('Gewichtsabnahme - Nachverfolg.'!B67=0,'Gewichtsabnahme - Nachverfolg.'!B66+5,'Gewichtsabnahme - Nachverfolg.'!B67))","v":"00:00:00"},{"$f":"'Gewichtsabnahme - Nachverfolg.'!C67","v":0}]
[{"$f":"IF(('Gewichtsabnahme - Nachverfolg.'!C68=0)*('Gewichtsabnahme - Nachverfolg.'!C67=0),TRUE)","v":true},{"$f":"IF(A47,0,IF('Gewichtsabnahme - Nachverfolg.'!B68=0,'Gewichtsabnahme - Nachverfolg.'!B67+5,'Gewichtsabnahme - Nachverfolg.'!B68))","v":"00:00:00"},{"$f":"'Gewichtsabnahme - Nachverfolg.'!C68","v":0}]
[{"$f":"IF(('Gewichtsabnahme - Nachverfolg.'!C69=0)*('Gewichtsabnahme - Nachverfolg.'!C68=0),TRUE)","v":true},{"$f":"IF(A48,0,IF('Gewichtsabnahme - Nachverfolg.'!B69=0,'Gewichtsabnahme - Nachverfolg.'!B68+5,'Gewichtsabnahme - Nachverfolg.'!B69))","v":"00:00:00"},{"$f":"'Gewichtsabnahme - Nachverfolg.'!C69","v":0}]
[{"$f":"IF(('Gewichtsabnahme - Nachverfolg.'!C70=0)*('Gewichtsabnahme - Nachverfolg.'!C69=0),TRUE)","v":true},{"$f":"IF(A49,0,IF('Gewichtsabnahme - Nachverfolg.'!B70=0,'Gewichtsabnahme - Nachverfolg.'!B69+5,'Gewichtsabnahme - Nachverfolg.'!B70))","v":"00:00:00"},{"$f":"'Gewichtsabnahme - Nachverfolg.'!C70","v":0}]
[{"$f":"IF(('Gewichtsabnahme - Nachverfolg.'!C71=0)*('Gewichtsabnahme - Nachverfolg.'!C70=0),TRUE)","v":true},{"$f":"IF(A50,0,IF('Gewichtsabnahme - Nachverfolg.'!B71=0,'Gewichtsabnahme - Nachverfolg.'!B70+5,'Gewichtsabnahme - Nachverfolg.'!B71))","v":"00:00:00"},{"$f":"'Gewichtsabnahme - Nachverfolg.'!C71","v":0}]
[{"$f":"IF(('Gewichtsabnahme - Nachverfolg.'!C72=0)*('Gewichtsabnahme - Nachverfolg.'!C71=0),TRUE)","v":true},{"$f":"IF(A51,0,IF('Gewichtsabnahme - Nachverfolg.'!B72=0,'Gewichtsabnahme - Nachverfolg.'!B71+5,'Gewichtsabnahme - Nachverfolg.'!B72))","v":"00:00:00"},{"$f":"'Gewichtsabnahme - Nachverfolg.'!C72","v":0}]
[{"$f":"IF(('Gewichtsabnahme - Nachverfolg.'!C73=0)*('Gewichtsabnahme - Nachverfolg.'!C72=0),TRUE)","v":true},{"$f":"IF(A52,0,IF('Gewichtsabnahme - Nachverfolg.'!B73=0,'Gewichtsabnahme - Nachverfolg.'!B72+5,'Gewichtsabnahme - Nachverfolg.'!B73))","v":"00:00:00"},{"$f":"'Gewichtsabnahme - Nachverfolg.'!C73","v":0}]
[{"$f":"IF(('Gewichtsabnahme - Nachverfolg.'!C74=0)*('Gewichtsabnahme - Nachverfolg.'!C73=0),TRUE)","v":true},{"$f":"IF(A53,0,IF('Gewichtsabnahme - Nachverfolg.'!B74=0,'Gewichtsabnahme - Nachverfolg.'!B73+5,'Gewichtsabnahme - Nachverfolg.'!B74))","v":"00:00:00"},{"$f":"'Gewichtsabnahme - Nachverfolg.'!C74","v":0}]
[{"$f":"IF(('Gewichtsabnahme - Nachverfolg.'!C75=0)*('Gewichtsabnahme - Nachverfolg.'!C74=0),TRUE)","v":true},{"$f":"IF(A54,0,IF('Gewichtsabnahme - Nachverfolg.'!B75=0,'Gewichtsabnahme - Nachverfolg.'!B74+5,'Gewichtsabnahme - Nachverfolg.'!B75))","v":"00:00:00"},{"$f":"'Gewichtsabnahme - Nachverfolg.'!C75","v":0}]
[{"$f":"IF(('Gewichtsabnahme - Nachverfolg.'!C76=0)*('Gewichtsabnahme - Nachverfolg.'!C75=0),TRUE)","v":true},{"$f":"IF(A55,0,IF('Gewichtsabnahme - Nachverfolg.'!B76=0,'Gewichtsabnahme - Nachverfolg.'!B75+5,'Gewichtsabnahme - Nachverfolg.'!B76))","v":"00:00:00"},{"$f":"'Gewichtsabnahme - Nachverfolg.'!C76","v":0}]
[{"$f":"IF(('Gewichtsabnahme - Nachverfolg.'!C77=0)*('Gewichtsabnahme - Nachverfolg.'!C76=0),TRUE)","v":true},{"$f":"IF(A56,0,IF('Gewichtsabnahme - Nachverfolg.'!B77=0,'Gewichtsabnahme - Nachverfolg.'!B76+5,'Gewichtsabnahme - Nachverfolg.'!B77))","v":"00:00:00"},{"$f":"'Gewichtsabnahme - Nachverfolg.'!C77","v":0}]
[{"$f":"IF(('Gewichtsabnahme - Nachverfolg.'!C78=0)*('Gewichtsabnahme - Nachverfolg.'!C77=0),TRUE)","v":true},{"$f":"IF(A57,0,IF('Gewichtsabnahme - Nachverfolg.'!B78=0,'Gewichtsabnahme - Nachverfolg.'!B77+5,'Gewichtsabnahme - Nachverfolg.'!B78))","v":"00:00:00"},{"$f":"'Gewichtsabnahme - Nachverfolg.'!C78","v":0}]
[{"$f":"IF(('Gewichtsabnahme - Nachverfolg.'!C79=0)*('Gewichtsabnahme - Nachverfolg.'!C78=0),TRUE)","v":true},{"$f":"IF(A58,0,IF('Gewichtsabnahme - Nachverfolg.'!B79=0,'Gewichtsabnahme - Nachverfolg.'!B78+5,'Gewichtsabnahme - Nachverfolg.'!B79))","v":"00:00:00"},{"$f":"'Gewichtsabnahme - Nachverfolg.'!C79","v":0}]
[{"$f":"IF(('Gewichtsabnahme - Nachverfolg.'!C80=0)*('Gewichtsabnahme - Nachverfolg.'!C79=0),TRUE)","v":true},{"$f":"IF(A59,0,IF('Gewichtsabnahme - Nachverfolg.'!B80=0,'Gewichtsabnahme - Nachverfolg.'!B79+5,'Gewichtsabnahme - Nachverfolg.'!B80))","v":"00:00:00"},{"$f":"'Gewichtsabnahme - Nachverfolg.'!C80","v":0}]
[{"$f":"IF(('Gewichtsabnahme - Nachverfolg.'!C81=0)*('Gewichtsabnahme - Nachverfolg.'!C80=0),TRUE)","v":true},{"$f":"IF(A60,0,IF('Gewichtsabnahme - Nachverfolg.'!B81=0,'Gewichtsabnahme - Nachverfolg.'!B80+5,'Gewichtsabnahme - Nachverfolg.'!B81))","v":"00:00:00"},{"$f":"'Gewichtsabnahme - Nachverfolg.'!C81","v":0}]
[{"$f":"IF(('Gewichtsabnahme - Nachverfolg.'!C82=0)*('Gewichtsabnahme - Nachverfolg.'!C81=0),TRUE)","v":true},{"$f":"IF(A61,0,IF('Gewichtsabnahme - Nachverfolg.'!B82=0,'Gewichtsabnahme - Nachverfolg.'!B81+5,'Gewichtsabnahme - Nachverfolg.'!B82))","v":"00:00:00"},{"$f":"'Gewichtsabnahme - Nachverfolg.'!C82","v":0}]
[{"$f":"IF(('Gewichtsabnahme - Nachverfolg.'!C83=0)*('Gewichtsabnahme - Nachverfolg.'!C82=0),TRUE)","v":true},{"$f":"IF(A62,0,IF('Gewichtsabnahme - Nachverfolg.'!B83=0,'Gewichtsabnahme - Nachverfolg.'!B82+5,'Gewichtsabnahme - Nachverfolg.'!B83))","v":"00:00:00"},{"$f":"'Gewichtsabnahme - Nachverfolg.'!C83","v":0}]
[{"$f":"IF(('Gewichtsabnahme - Nachverfolg.'!C84=0)*('Gewichtsabnahme - Nachverfolg.'!C83=0),TRUE)","v":true},{"$f":"IF(A63,0,IF('Gewichtsabnahme - Nachverfolg.'!B84=0,'Gewichtsabnahme - Nachverfolg.'!B83+5,'Gewichtsabnahme - Nachverfolg.'!B84))","v":"00:00:00"},{"$f":"'Gewichtsabnahme - Nachverfolg.'!C84","v":0}]
[{"$f":"IF(('Gewichtsabnahme - Nachverfolg.'!C85=0)*('Gewichtsabnahme - Nachverfolg.'!C84=0),TRUE)","v":true},{"$f":"IF(A64,0,IF('Gewichtsabnahme - Nachverfolg.'!B85=0,'Gewichtsabnahme - Nachverfolg.'!B84+5,'Gewichtsabnahme - Nachverfolg.'!B85))","v":"00:00:00"},{"$f":"'Gewichtsabnahme - Nachverfolg.'!C85","v":0}]
[{"$f":"IF(('Gewichtsabnahme - Nachverfolg.'!C86=0)*('Gewichtsabnahme - Nachverfolg.'!C85=0),TRUE)","v":true},{"$f":"IF(A65,0,IF('Gewichtsabnahme - Nachverfolg.'!B86=0,'Gewichtsabnahme - Nachverfolg.'!B85+5,'Gewichtsabnahme - Nachverfolg.'!B86))","v":"00:00:00"},{"$f":"'Gewichtsabnahme - Nachverfolg.'!C86","v":0}]
[{"$f":"IF(('Gewichtsabnahme - Nachverfolg.'!C87=0)*('Gewichtsabnahme - Nachverfolg.'!C86=0),TRUE)","v":true},{"$f":"IF(A66,0,IF('Gewichtsabnahme - Nachverfolg.'!B87=0,'Gewichtsabnahme - Nachverfolg.'!B86+5,'Gewichtsabnahme - Nachverfolg.'!B87))","v":"00:00:00"},{"$f":"'Gewichtsabnahme - Nachverfolg.'!C87","v":0}]
[{"$f":"IF(('Gewichtsabnahme - Nachverfolg.'!C88=0)*('Gewichtsabnahme - Nachverfolg.'!C87=0),TRUE)","v":true},{"$f":"IF(A67,0,IF('Gewichtsabnahme - Nachverfolg.'!B88=0,'Gewichtsabnahme - Nachverfolg.'!B87+5,'Gewichtsabnahme - Nachverfolg.'!B88))","v":"00:00:00"},{"$f":"'Gewichtsabnahme - Nachverfolg.'!C88","v":0}]
[{"$f":"IF(('Gewichtsabnahme - Nachverfolg.'!C89=0)*('Gewichtsabnahme - Nachverfolg.'!C88=0),TRUE)","v":true},{"$f":"IF(A68,0,IF('Gewichtsabnahme - Nachverfolg.'!B89=0,'Gewichtsabnahme - Nachverfolg.'!B88+5,'Gewichtsabnahme - Nachverfolg.'!B89))","v":"00:00:00"},{"$f":"'Gewichtsabnahme - Nachverfolg.'!C89","v":0}]
[{"$f":"IF(('Gewichtsabnahme - Nachverfolg.'!C90=0)*('Gewichtsabnahme - Nachverfolg.'!C89=0),TRUE)","v":true},{"$f":"IF(A69,0,IF('Gewichtsabnahme - Nachverfolg.'!B90=0,'Gewichtsabnahme - Nachverfolg.'!B89+5,'Gewichtsabnahme - Nachverfolg.'!B90))","v":"00:00:00"},{"$f":"'Gewichtsabnahme - Nachverfolg.'!C90","v":0}]
[{"$f":"IF(('Gewichtsabnahme - Nachverfolg.'!C91=0)*('Gewichtsabnahme - Nachverfolg.'!C90=0),TRUE)","v":true},{"$f":"IF(A70,0,IF('Gewichtsabnahme - Nachverfolg.'!B91=0,'Gewichtsabnahme - Nachverfolg.'!B90+5,'Gewichtsabnahme - Nachverfolg.'!B91))","v":"00:00:00"},{"$f":"'Gewichtsabnahme - Nachverfolg.'!C91","v":0}]
[{"$f":"IF(('Gewichtsabnahme - Nachverfolg.'!C92=0)*('Gewichtsabnahme - Nachverfolg.'!C91=0),TRUE)","v":true},{"$f":"IF(A71,0,IF('Gewichtsabnahme - Nachverfolg.'!B92=0,'Gewichtsabnahme - Nachverfolg.'!B91+5,'Gewichtsabnahme - Nachverfolg.'!B92))","v":"00:00:00"},{"$f":"'Gewichtsabnahme - Nachverfolg.'!C92","v":0}]
[{"$f":"IF(('Gewichtsabnahme - Nachverfolg.'!C93=0)*('Gewichtsabnahme - Nachverfolg.'!C92=0),TRUE)","v":true},{"$f":"IF(A72,0,IF('Gewichtsabnahme - Nachverfolg.'!B93=0,'Gewichtsabnahme - Nachverfolg.'!B92+5,'Gewichtsabnahme - Nachverfolg.'!B93))","v":"00:00:00"},{"$f":"'Gewichtsabnahme - Nachverfolg.'!C93","v":0}]
[{"$f":"IF(('Gewichtsabnahme - Nachverfolg.'!C94=0)*('Gewichtsabnahme - Nachverfolg.'!C93=0),TRUE)","v":true},{"$f":"IF(A73,0,IF('Gewichtsabnahme - Nachverfolg.'!B94=0,'Gewichtsabnahme - Nachverfolg.'!B93+5,'Gewichtsabnahme - Nachverfolg.'!B94))","v":"00:00:00"},{"$f":"'Gewichtsabnahme - Nachverfolg.'!C94","v":0}]
[{"$f":"IF(('Gewichtsabnahme - Nachverfolg.'!C95=0)*('Gewichtsabnahme - Nachverfolg.'!C94=0),TRUE)","v":true},{"$f":"IF(A74,0,IF('Gewichtsabnahme - Nachverfolg.'!B95=0,'Gewichtsabnahme - Nachverfolg.'!B94+5,'Gewichtsabnahme - Nachverfolg.'!B95))","v":"00:00:00"},{"$f":"'Gewichtsabnahme - Nachverfolg.'!C95","v":0}]
[{"$f":"IF(('Gewichtsabnahme - Nachverfolg.'!C96=0)*('Gewichtsabnahme - Nachverfolg.'!C95=0),TRUE)","v":true},{"$f":"IF(A75,0,IF('Gewichtsabnahme - Nachverfolg.'!B96=0,'Gewichtsabnahme - Nachverfolg.'!B95+5,'Gewichtsabnahme - Nachverfolg.'!B96))","v":"00:00:00"},{"$f":"'Gewichtsabnahme - Nachverfolg.'!C96","v":0}]
[{"$f":"IF(('Gewichtsabnahme - Nachverfolg.'!C97=0)*('Gewichtsabnahme - Nachverfolg.'!C96=0),TRUE)","v":true},{"$f":"IF(A76,0,IF('Gewichtsabnahme - Nachverfolg.'!B97=0,'Gewichtsabnahme - Nachverfolg.'!B96+5,'Gewichtsabnahme - Nachverfolg.'!B97))","v":"00:00:00"},{"$f":"'Gewichtsabnahme - Nachverfolg.'!C97","v":0}]
[{"$f":"IF(('Gewichtsabnahme - Nachverfolg.'!C98=0)*('Gewichtsabnahme - Nachverfolg.'!C97=0),TRUE)","v":true},{"$f":"IF(A77,0,IF('Gewichtsabnahme - Nachverfolg.'!B98=0,'Gewichtsabnahme - Nachverfolg.'!B97+5,'Gewichtsabnahme - Nachverfolg.'!B98))","v":"00:00:00"},{"$f":"'Gewichtsabnahme - Nachverfolg.'!C98","v":0}]
[{"$f":"IF(('Gewichtsabnahme - Nachverfolg.'!C99=0)*('Gewichtsabnahme - Nachverfolg.'!C98=0),TRUE)","v":true},{"$f":"IF(A78,0,IF('Gewichtsabnahme - Nachverfolg.'!B99=0,'Gewichtsabnahme - Nachverfolg.'!B98+5,'Gewichtsabnahme - Nachverfolg.'!B99))","v":"00:00:00"},{"$f":"'Gewichtsabnahme - Nachverfolg.'!C99","v":0}]
[{"$f":"IF(('Gewichtsabnahme - Nachverfolg.'!C100=0)*('Gewichtsabnahme - Nachverfolg.'!C99=0),TRUE)","v":true},{"$f":"IF(A79,0,IF('Gewichtsabnahme - Nachverfolg.'!B100=0,'Gewichtsabnahme - Nachverfolg.'!B99+5,'Gewichtsabnahme - Nachverfolg.'!B100))","v":"00:00:00"},{"$f":"'Gewichtsabnahme - Nachverfolg.'!C100","v":0}]
[{"$f":"IF(('Gewichtsabnahme - Nachverfolg.'!C101=0)*('Gewichtsabnahme - Nachverfolg.'!C100=0),TRUE)","v":true},{"$f":"IF(A80,0,IF('Gewichtsabnahme - Nachverfolg.'!B101=0,'Gewichtsabnahme - Nachverfolg.'!B100+5,'Gewichtsabnahme - Nachverfolg.'!B101))","v":"00:00:00"},{"$f":"'Gewichtsabnahme - Nachverfolg.'!C101","v":0}]
[{"$f":"IF(('Gewichtsabnahme - Nachverfolg.'!C102=0)*('Gewichtsabnahme - Nachverfolg.'!C101=0),TRUE)","v":true},{"$f":"IF(A81,0,IF('Gewichtsabnahme - Nachverfolg.'!B102=0,'Gewichtsabnahme - Nachverfolg.'!B101+5,'Gewichtsabnahme - Nachverfolg.'!B102))","v":"00:00:00"},{"$f":"'Gewichtsabnahme - Nachverfolg.'!C102","v":0}]
[{"$f":"IF(('Gewichtsabnahme - Nachverfolg.'!C103=0)*('Gewichtsabnahme - Nachverfolg.'!C102=0),TRUE)","v":true},{"$f":"IF(A82,0,IF('Gewichtsabnahme - Nachverfolg.'!B103=0,'Gewichtsabnahme - Nachverfolg.'!B102+5,'Gewichtsabnahme - Nachverfolg.'!B103))","v":"00:00:00"},{"$f":"'Gewichtsabnahme - Nachverfolg.'!C103","v":0}]
[{"$f":"IF(('Gewichtsabnahme - Nachverfolg.'!C104=0)*('Gewichtsabnahme - Nachverfolg.'!C103=0),TRUE)","v":true},{"$f":"IF(A83,0,IF('Gewichtsabnahme - Nachverfolg.'!B104=0,'Gewichtsabnahme - Nachverfolg.'!B103+5,'Gewichtsabnahme - Nachverfolg.'!B104))","v":"00:00:00"},{"$f":"'Gewichtsabnahme - Nachverfolg.'!C104","v":0}]
[{"$f":"IF(('Gewichtsabnahme - Nachverfolg.'!C105=0)*('Gewichtsabnahme - Nachverfolg.'!C104=0),TRUE)","v":true},{"$f":"IF(A84,0,IF('Gewichtsabnahme - Nachverfolg.'!B105=0,'Gewichtsabnahme - Nachverfolg.'!B104+5,'Gewichtsabnahme - Nachverfolg.'!B105))","v":"00:00:00"},{"$f":"'Gewichtsabnahme - Nachverfolg.'!C105","v":0}]
[{"$f":"IF(('Gewichtsabnahme - Nachverfolg.'!C106=0)*('Gewichtsabnahme - Nachverfolg.'!C105=0),TRUE)","v":true},{"$f":"IF(A85,0,IF('Gewichtsabnahme - Nachverfolg.'!B106=0,'Gewichtsabnahme - Nachverfolg.'!B105+5,'Gewichtsabnahme - Nachverfolg.'!B106))","v":"00:00:00"},{"$f":"'Gewichtsabnahme - Nachverfolg.'!C106","v":0}]
[{"$f":"IF(('Gewichtsabnahme - Nachverfolg.'!C107=0)*('Gewichtsabnahme - Nachverfolg.'!C106=0),TRUE)","v":true},{"$f":"IF(A86,0,IF('Gewichtsabnahme - Nachverfolg.'!B107=0,'Gewichtsabnahme - Nachverfolg.'!B106+5,'Gewichtsabnahme - Nachverfolg.'!B107))","v":"00:00:00"},{"$f":"'Gewichtsabnahme - Nachverfolg.'!C107","v":0}]
[{"$f":"IF(('Gewichtsabnahme - Nachverfolg.'!C108=0)*('Gewichtsabnahme - Nachverfolg.'!C107=0),TRUE)","v":true},{"$f":"IF(A87,0,IF('Gewichtsabnahme - Nachverfolg.'!B108=0,'Gewichtsabnahme - Nachverfolg.'!B107+5,'Gewichtsabnahme - Nachverfolg.'!B108))","v":"00:00:00"},{"$f":"'Gewichtsabnahme - Nachverfolg.'!C108","v":0}]
[{"$f":"IF(('Gewichtsabnahme - Nachverfolg.'!C109=0)*('Gewichtsabnahme - Nachverfolg.'!C108=0),TRUE)","v":true},{"$f":"IF(A88,0,IF('Gewichtsabnahme - Nachverfolg.'!B109=0,'Gewichtsabnahme - Nachverfolg.'!B108+5,'Gewichtsabnahme - Nachverfolg.'!B109))","v":"00:00:00"},{"$f":"'Gewichtsabnahme - Nachverfolg.'!C109","v":0}]
[{"$f":"IF(('Gewichtsabnahme - Nachverfolg.'!C110=0)*('Gewichtsabnahme - Nachverfolg.'!C109=0),TRUE)","v":true},{"$f":"IF(A89,0,IF('Gewichtsabnahme - Nachverfolg.'!B110=0,'Gewichtsabnahme - Nachverfolg.'!B109+5,'Gewichtsabnahme - Nachverfolg.'!B110))","v":"00:00:00"},{"$f":"'Gewichtsabnahme - Nachverfolg.'!C110","v":0}]
[{"$f":"IF(('Gewichtsabnahme - Nachverfolg.'!C111=0)*('Gewichtsabnahme - Nachverfolg.'!C110=0),TRUE)","v":true},{"$f":"IF(A90,0,IF('Gewichtsabnahme - Nachverfolg.'!B111=0,'Gewichtsabnahme - Nachverfolg.'!B110+5,'Gewichtsabnahme - Nachverfolg.'!B111))","v":"00:00:00"},{"$f":"'Gewichtsabnahme - Nachverfolg.'!C111","v":0}]
[{"$f":"IF(('Gewichtsabnahme - Nachverfolg.'!C112=0)*('Gewichtsabnahme - Nachverfolg.'!C111=0),TRUE)","v":true},{"$f":"IF(A91,0,IF('Gewichtsabnahme - Nachverfolg.'!B112=0,'Gewichtsabnahme - Nachverfolg.'!B111+5,'Gewichtsabnahme - Nachverfolg.'!B112))","v":"00:00:00"},{"$f":"'Gewichtsabnahme - Nachverfolg.'!C112","v":0}]
[{"$f":"IF(('Gewichtsabnahme - Nachverfolg.'!C113=0)*('Gewichtsabnahme - Nachverfolg.'!C112=0),TRUE)","v":true},{"$f":"IF(A92,0,IF('Gewichtsabnahme - Nachverfolg.'!B113=0,'Gewichtsabnahme - Nachverfolg.'!B112+5,'Gewichtsabnahme - Nachverfolg.'!B113))","v":"00:00:00"},{"$f":"'Gewichtsabnahme - Nachverfolg.'!C113","v":0}]
[{"$f":"IF(('Gewichtsabnahme - Nachverfolg.'!C114=0)*('Gewichtsabnahme - Nachverfolg.'!C113=0),TRUE)","v":true},{"$f":"IF(A93,0,IF('Gewichtsabnahme - Nachverfolg.'!B114=0,'Gewichtsabnahme - Nachverfolg.'!B113+5,'Gewichtsabnahme - Nachverfolg.'!B114))","v":"00:00:00"},{"$f":"'Gewichtsabnahme - Nachverfolg.'!C114","v":0}]
[{"$f":"IF(('Gewichtsabnahme - Nachverfolg.'!C115=0)*('Gewichtsabnahme - Nachverfolg.'!C114=0),TRUE)","v":true},{"$f":"IF(A94,0,IF('Gewichtsabnahme - Nachverfolg.'!B115=0,'Gewichtsabnahme - Nachverfolg.'!B114+5,'Gewichtsabnahme - Nachverfolg.'!B115))","v":"00:00:00"},{"$f":"'Gewichtsabnahme - Nachverfolg.'!C115","v":0}]
[{"$f":"IF(('Gewichtsabnahme - Nachverfolg.'!C116=0)*('Gewichtsabnahme - Nachverfolg.'!C115=0),TRUE)","v":true},{"$f":"IF(A95,0,IF('Gewichtsabnahme - Nachverfolg.'!B116=0,'Gewichtsabnahme - Nachverfolg.'!B115+5,'Gewichtsabnahme - Nachverfolg.'!B116))","v":"00:00:00"},{"$f":"'Gewichtsabnahme - Nachverfolg.'!C116","v":0}]
[{"$f":"IF(('Gewichtsabnahme - Nachverfolg.'!C117=0)*('Gewichtsabnahme - Nachverfolg.'!C116=0),TRUE)","v":true},{"$f":"IF(A96,0,IF('Gewichtsabnahme - Nachverfolg.'!B117=0,'Gewichtsabnahme - Nachverfolg.'!B116+5,'Gewichtsabnahme - Nachverfolg.'!B117))","v":"00:00:00"},{"$f":"'Gewichtsabnahme - Nachverfolg.'!C117","v":0}]
[{"$f":"IF(('Gewichtsabnahme - Nachverfolg.'!C118=0)*('Gewichtsabnahme - Nachverfolg.'!C117=0),TRUE)","v":true},{"$f":"IF(A97,0,IF('Gewichtsabnahme - Nachverfolg.'!B118=0,'Gewichtsabnahme - Nachverfolg.'!B117+5,'Gewichtsabnahme - Nachverfolg.'!B118))","v":"00:00:00"},{"$f":"'Gewichtsabnahme - Nachverfolg.'!C118","v":0}]
[{"$f":"IF(('Gewichtsabnahme - Nachverfolg.'!C119=0)*('Gewichtsabnahme - Nachverfolg.'!C118=0),TRUE)","v":true},{"$f":"IF(A98,0,IF('Gewichtsabnahme - Nachverfolg.'!B119=0,'Gewichtsabnahme - Nachverfolg.'!B118+5,'Gewichtsabnahme - Nachverfolg.'!B119))","v":"00:00:00"},{"$f":"'Gewichtsabnahme - Nachverfolg.'!C119","v":0}]
[{"$f":"IF(('Gewichtsabnahme - Nachverfolg.'!C120=0)*('Gewichtsabnahme - Nachverfolg.'!C119=0),TRUE)","v":true},{"$f":"IF(A99,0,IF('Gewichtsabnahme - Nachverfolg.'!B120=0,'Gewichtsabnahme - Nachverfolg.'!B119+5,'Gewichtsabnahme - Nachverfolg.'!B120))","v":"00:00:00"},{"$f":"'Gewichtsabnahme - Nachverfolg.'!C120","v":0}]
[{"$f":"IF(('Gewichtsabnahme - Nachverfolg.'!C121=0)*('Gewichtsabnahme - Nachverfolg.'!C120=0),TRUE)","v":true},{"$f":"IF(A100,0,IF('Gewichtsabnahme - Nachverfolg.'!B121=0,'Gewichtsabnahme - Nachverfolg.'!B120+5,'Gewichtsabnahme - Nachverfolg.'!B121))","v":"00:00:00"},{"$f":"'Gewichtsabnahme - Nachverfolg.'!C121","v":0}]
[{"$f":"IF(('Gewichtsabnahme - Nachverfolg.'!C122=0)*('Gewichtsabnahme - Nachverfolg.'!C121=0),TRUE)","v":true},{"$f":"IF(A101,0,IF('Gewichtsabnahme - Nachverfolg.'!B122=0,'Gewichtsabnahme - Nachverfolg.'!B121+5,'Gewichtsabnahme - Nachverfolg.'!B122))","v":"00:00:00"},{"$f":"'Gewichtsabnahme - Nachverfolg.'!C122","v":0}]
[{"$f":"IF(('Gewichtsabnahme - Nachverfolg.'!C123=0)*('Gewichtsabnahme - Nachverfolg.'!C122=0),TRUE)","v":true},{"$f":"IF(A102,0,IF('Gewichtsabnahme - Nachverfolg.'!B123=0,'Gewichtsabnahme - Nachverfolg.'!B122+5,'Gewichtsabnahme - Nachverfolg.'!B123))","v":"00:00:00"},{"$f":"'Gewichtsabnahme - Nachverfolg.'!C123","v":0}]
[{"$f":"IF(('Gewichtsabnahme - Nachverfolg.'!C124=0)*('Gewichtsabnahme - Nachverfolg.'!C123=0),TRUE)","v":true},{"$f":"IF(A103,0,IF('Gewichtsabnahme - Nachverfolg.'!B124=0,'Gewichtsabnahme - Nachverfolg.'!B123+5,'Gewichtsabnahme - Nachverfolg.'!B124))","v":"00:00:00"},{"$f":"'Gewichtsabnahme - Nachverfolg.'!C124","v":0}]
[{"$f":"IF(('Gewichtsabnahme - Nachverfolg.'!C125=0)*('Gewichtsabnahme - Nachverfolg.'!C124=0),TRUE)","v":true},{"$f":"IF(A104,0,IF('Gewichtsabnahme - Nachverfolg.'!B125=0,'Gewichtsabnahme - Nachverfolg.'!B124+5,'Gewichtsabnahme - Nachverfolg.'!B125))","v":"00:00:00"},{"$f":"'Gewichtsabnahme - Nachverfolg.'!C125","v":0}]
[{"$f":"IF(('Gewichtsabnahme - Nachverfolg.'!C126=0)*('Gewichtsabnahme - Nachverfolg.'!C125=0),TRUE)","v":true},{"$f":"IF(A105,0,IF('Gewichtsabnahme - Nachverfolg.'!B126=0,'Gewichtsabnahme - Nachverfolg.'!B125+5,'Gewichtsabnahme - Nachverfolg.'!B126))","v":"00:00:00"},{"$f":"'Gewichtsabnahme - Nachverfolg.'!C126","v":0}]
[{"$f":"IF(('Gewichtsabnahme - Nachverfolg.'!C127=0)*('Gewichtsabnahme - Nachverfolg.'!C126=0),TRUE)","v":true},{"$f":"IF(A106,0,IF('Gewichtsabnahme - Nachverfolg.'!B127=0,'Gewichtsabnahme - Nachverfolg.'!B126+5,'Gewichtsabnahme - Nachverfolg.'!B127))","v":"00:00:00"},{"$f":"'Gewichtsabnahme - Nachverfolg.'!C127","v":0}]
[{"$f":"IF(('Gewichtsabnahme - Nachverfolg.'!C128=0)*('Gewichtsabnahme - Nachverfolg.'!C127=0),TRUE)","v":true},{"$f":"IF(A107,0,IF('Gewichtsabnahme - Nachverfolg.'!B128=0,'Gewichtsabnahme - Nachverfolg.'!B127+5,'Gewichtsabnahme - Nachverfolg.'!B128))","v":"00:00:00"},{"$f":"'Gewichtsabnahme - Nachverfolg.'!C128","v":0}]
[{"$f":"IF(('Gewichtsabnahme - Nachverfolg.'!C129=0)*('Gewichtsabnahme - Nachverfolg.'!C128=0),TRUE)","v":true},{"$f":"IF(A108,0,IF('Gewichtsabnahme - Nachverfolg.'!B129=0,'Gewichtsabnahme - Nachverfolg.'!B128+5,'Gewichtsabnahme - Nachverfolg.'!B129))","v":"00:00:00"},{"$f":"'Gewichtsabnahme - Nachverfolg.'!C129","v":0}]